[Event "FIDE World Rapid Chess Championship 2021"]
[White "Szpar, Milosz"]
[Black "Ter-Sahakyan, Samvel"]
[WhiteFideId "1184989"]
[BlackFideId "13302531"]
[WhiteElo "2315"]
[BlackElo "2573"]
[Result "1/2-1/2"]
[Round "06"]
[TimeControl "900+10"]
[Date "2021.12.27"]
[WhiteClock "0:00:42"]
[BlackClock "0:01:33"]

1. e4 {[%clk 0:15:00]}  c5 {[%clk 0:15:00]} 2. Nf3 {[%clk 0:15:00]}  d6 {[%clk 0:15:26]} 3. c3 {[%clk 0:15:23]}  Nf6 {[%clk 0:15:26]} 4. h3 {[%clk 0:15:23]}  g6 {[%clk 0:15:26]} 5. Bd3 {[%clk 0:15:23]}  Bg7 {[%clk 0:15:14]} 6. Bc2 {[%clk 0:15:16]}  O-O {[%clk 0:15:14]} 7. d4 {[%clk 0:15:16]}  Nc6 {[%clk 0:14:26]} 8. O-O {[%clk 0:15:14]}  e5 {[%clk 0:12:52]} 9. dxc5 {[%clk 0:14:12]}  dxc5 {[%clk 0:12:05]} 10. Qxd8 {[%clk 0:14:12]}  Rxd8 {[%clk 0:12:05]} 11. Bg5 {[%clk 0:14:12]}  h6 {[%clk 0:12:05]} 12. Bxf6 {[%clk 0:13:00]}  Bxf6 {[%clk 0:12:22]} 13. Nbd2 {[%clk 0:13:00]}  b5 {[%clk 0:12:22]} 14. Rfd1 {[%clk 0:13:00]}  Be6 {[%clk 0:11:52]} 15. Nf1 {[%clk 0:11:29]}  h5 {[%clk 0:09:05]} 16. Ne3 {[%clk 0:06:26]}  Na5 {[%clk 0:06:13]} 17. Bd3 {[%clk 0:06:22]}  a6 {[%clk 0:05:52]} 18. Be2 {[%clk 0:03:41]}  Kg7 {[%clk 0:04:56]} 19. b3 {[%clk 0:02:37]}  Nb7 {[%clk 0:02:56]} 20. Rxd8 {[%clk 0:01:52]}  Rxd8 {[%clk 0:02:56]} 21. Rd1 {[%clk 0:00:42]}  Rxd1+ {[%clk 0:03:05]} 22. Bxd1 {[%clk 0:00:42]}  Nd6 {[%clk 0:02:11]} 23. Bc2 {[%clk 0:00:53]}  c4 {[%clk 0:02:11]} 24. b4 {[%clk 0:00:53]}  Kf8 {[%clk 0:02:11]} 25. Kf1 {[%clk 0:00:40]}  Bg7 {[%clk 0:01:32]} 26. g4 {[%clk 0:00:40]}  Bc8 {[%clk 0:01:03]} 27. Ke2 {[%clk 0:00:24]}  hxg4 {[%clk 0:01:03]} 28. hxg4 {[%clk 0:00:24]}  Bb7 {[%clk 0:01:03]} 29. Nd2 {[%clk 0:00:24]}  Bh6 {[%clk 0:01:03]} 30. f3 {[%clk 0:00:24]}  Ke7 {[%clk 0:01:03]} 31. a4 {[%clk 0:00:24]}  Bc6 {[%clk 0:01:03]} 32. axb5 {[%clk 0:00:26]}  axb5 {[%clk 0:01:09]} 33. Ndf1 {[%clk 0:00:26]}  Bf4 {[%clk 0:01:09]} 34. Ng2 {[%clk 0:00:26]}  Bg5 {[%clk 0:01:09]} 35. Nge3 {[%clk 0:00:26]}  Ne8 {[%clk 0:01:09]} 36. Ng3 {[%clk 0:00:15]}  Nc7 {[%clk 0:01:21]} 37. Kf2 {[%clk 0:00:15]}  Ne6 {[%clk 0:01:21]} 38. Ne2 {[%clk 0:00:15]}  Bh4+ {[%clk 0:01:21]} 39. Kg2 {[%clk 0:00:15]}  Be1 {[%clk 0:01:21]} 40. Kf1 {[%clk 0:00:15]}  Bd2 {[%clk 0:01:22]} 41. Nd1 {[%clk 0:00:22]}  Kf6 {[%clk 0:01:22]} 42. Ng1 {[%clk 0:00:22]}  Nf4 {[%clk 0:01:22]} 43. Ne2 {[%clk 0:00:22]}  Kg5 {[%clk 0:01:22]} 44. Kf2 {[%clk 0:00:22]}  Bb7 {[%clk 0:00:40]} 45. Bb1 {[%clk 0:00:13]}  Kh4 {[%clk 0:00:40]} 46. Nxf4 {[%clk 0:00:13]}  exf4 {[%clk 0:00:16]} 47. Kg2 {[%clk 0:00:23]}  Be3 {[%clk 0:00:16]} 48. Bc2 {[%clk 0:00:23]}  Bb6 {[%clk 0:00:16]} 49. Bb1 {[%clk 0:00:23]}  Bc7 {[%clk 0:00:16]} 50. Bc2 {[%clk 0:00:23]}  Be5 {[%clk 0:00:16]} 51. Bb1 {[%clk 0:00:23]}  Bc8 {[%clk 0:00:16]} 52. Bc2 {[%clk 0:00:23]}  Bd7 {[%clk 0:00:16]} 53. Bb1 {[%clk 0:00:23]}  Kg5 {[%clk 0:00:16]} 54. Bc2 {[%clk 0:00:42]}  Kf6 {[%clk 0:00:24]} 55. Bb1 {[%clk 0:00:42]}  Ke7 {[%clk 0:00:24]} 56. Bc2 {[%clk 0:00:42]}  Bf6 {[%clk 0:00:24]} 57. Kh3 {[%clk 0:00:42]}  Kd6 {[%clk 0:00:24]} 58. Bb1 {[%clk 0:00:42]}  Bd8 {[%clk 0:00:24]} 59. Bc2 {[%clk 0:00:42]}  Ke5 {[%clk 0:01:03]} 60. Bb1 {[%clk 0:00:44]}  Be7 {[%clk 0:01:03]} 61. Bc2 {[%clk 0:00:44]}  Bc6 {[%clk 0:01:03]} 62. Kg2 {[%clk 0:00:44]}  Bh4 {[%clk 0:01:03]} 63. Nf2 {[%clk 0:00:44]}  Bg3 {[%clk 0:01:03]} 64. Nd1 {[%clk 0:00:44]}  Be1 {[%clk 0:01:03]} 65. Bb1 {[%clk 0:00:44]}  Bd7 {[%clk 0:01:20]} 66. Bc2 {[%clk 0:00:23]}  Be6 {[%clk 0:01:20]} 67. Bb1 {[%clk 0:00:23]}  f5 {[%clk 0:01:20]} 68. gxf5 {[%clk 0:00:23]}  gxf5 {[%clk 0:01:20]} 69. exf5 {[%clk 0:00:23]}  Bxf5 {[%clk 0:01:20]} 70. Bxf5 {[%clk 0:00:23]}  Kxf5 {[%clk 0:01:20]} 71. Kf1 {[%clk 0:00:23]}  Bg3 {[%clk 0:01:33]} 72. Nf2 {[%clk 0:00:42]}  Bxf2 {[%clk 0:01:33]} 1/2-1/2


[Site "http://www.Chess.com"]

[Event "FIDE World Rapid Chess Championship 2021"]
[White "Ghaem Maghami, Ehsan"]
[Black "Gumularz, Szymon"]
[WhiteFideId "12500739"]
[BlackFideId "1188062"]
[WhiteElo "2553"]
[BlackElo "2452"]
[Result "1-0"]
[Round "06"]
[TimeControl "900+10"]
[Date "2021.12.27"]
[WhiteClock "0:00:13"]
[BlackClock "0:00:28"]

1. c4 {[%clk 0:15:00]}  Nf6 {[%clk 0:15:00]} 2. Nc3 {[%clk 0:15:00]}  e5 {[%clk 0:15:00]} 3. g3 {[%clk 0:15:00]}  d5 {[%clk 0:15:00]} 4. cxd5 {[%clk 0:15:00]}  Nxd5 {[%clk 0:15:00]} 5. Bg2 {[%clk 0:15:00]}  Nb6 {[%clk 0:15:00]} 6. d3 {[%clk 0:15:00]}  Be7 {[%clk 0:15:46]} 7. a3 {[%clk 0:14:58]}  O-O {[%clk 0:15:46]} 8. Nf3 {[%clk 0:14:58]}  Nc6 {[%clk 0:15:46]} 9. b4 {[%clk 0:14:58]}  Be6 {[%clk 0:15:46]} 10. Bb2 {[%clk 0:14:58]}  a5 {[%clk 0:15:46]} 11. b5 {[%clk 0:14:58]}  Nd4 {[%clk 0:15:46]} 12. O-O {[%clk 0:14:58]}  f6 {[%clk 0:15:46]} 13. Nd2 {[%clk 0:15:34]}  Qc8 {[%clk 0:15:55]} 14. e3 {[%clk 0:15:24]}  Nf5 {[%clk 0:12:25]} 15. a4 {[%clk 0:13:14]}  Rd8 {[%clk 0:12:32]} 16. Qc2 {[%clk 0:11:33]}  Nh6 {[%clk 0:12:36]} 17. Rfc1 {[%clk 0:10:45]}  Rb8 {[%clk 0:12:17]} 18. Nb3 {[%clk 0:10:45]}  Ra8 {[%clk 0:11:53]} 19. d4 {[%clk 0:09:22]}  Nc4 {[%clk 0:10:27]} 20. Ne4 {[%clk 0:07:26]}  Nxb2 {[%clk 0:07:50]} 21. Qxb2 {[%clk 0:05:40]}  Nf7 {[%clk 0:06:15]} 22. Nec5 {[%clk 0:05:46]}  Bd5 {[%clk 0:06:15]} 23. Bxd5 {[%clk 0:05:46]}  Rxd5 {[%clk 0:06:08]} 24. e4 {[%clk 0:05:03]}  Rd8 {[%clk 0:06:08]} 25. d5 {[%clk 0:05:03]}  Ng5 {[%clk 0:06:08]} 26. Qe2 {[%clk 0:05:03]}  b6 {[%clk 0:05:59]} 27. Nd3 {[%clk 0:04:42]}  Bd6 {[%clk 0:05:29]} 28. h4 {[%clk 0:03:58]}  Nf7 {[%clk 0:03:16]} 29. Nd2 {[%clk 0:03:58]}  Qd7 {[%clk 0:03:16]} 30. Nc4 {[%clk 0:03:58]}  Rf8 {[%clk 0:02:47]} 31. Rc2 {[%clk 0:03:03]}  Be7 {[%clk 0:02:47]} 32. Rac1 {[%clk 0:02:41]}  Rae8 {[%clk 0:02:47]} 33. Ne3 {[%clk 0:02:41]}  Bd8 {[%clk 0:02:47]} 34. Rc6 {[%clk 0:02:52]}  g6 {[%clk 0:01:58]} 35. Qg4 {[%clk 0:01:54]}  Qxg4 {[%clk 0:01:27]} 36. Nxg4 {[%clk 0:00:59]}  Nd6 {[%clk 0:01:27]} 37. Re1 {[%clk 0:00:59]}  Kg7 {[%clk 0:01:27]} 38. f3 {[%clk 0:00:59]}  Rf7 {[%clk 0:01:27]} 39. Kg2 {[%clk 0:00:59]}  Rfe7 {[%clk 0:00:17]} 40. Ne3 {[%clk 0:01:23]}  Rd7 {[%clk 0:00:17]} 41. Rec1 {[%clk 0:01:23]}  f5 {[%clk 0:00:17]} 42. Nf2 {[%clk 0:00:00]}  Rf7 {[%clk 0:00:14]} 43. Nc4 {[%clk 0:00:00]}  Nb7 {[%clk 0:00:14]} 44. Nd3 {[%clk 0:00:00]}  Bf6 {[%clk 0:00:14]} 45. Ne3 {[%clk 0:00:00]}  fxe4 {[%clk 0:00:14]} 46. fxe4 {[%clk 0:00:00]}  Nd6 {[%clk 0:00:14]} 47. Rxc7 {[%clk 0:00:19]}  Nxe4 {[%clk 0:00:45]} 48. Rxf7+ {[%clk 0:00:19]}  Kxf7 {[%clk 0:00:45]} 49. Ng4 {[%clk 0:00:19]}  Bg7 {[%clk 0:00:45]} 50. Rc6 {[%clk 0:00:19]}  h5 {[%clk 0:00:17]} 51. Ne3 {[%clk 0:00:14]}  Rd8 {[%clk 0:00:17]} 52. Rxb6 {[%clk 0:00:14]}  Nc3 {[%clk 0:00:17]} 53. Nc5 {[%clk 0:00:14]}  Bh6 {[%clk 0:00:17]} 54. Nc4 {[%clk 0:00:14]}  Rxd5 {[%clk 0:00:17]} 55. Rc6 {[%clk 0:00:14]}  Bf8 {[%clk 0:00:17]} 56. b6 {[%clk 0:00:13]}  Bxc5 {[%clk 0:00:28]} 57. Rxc5 {[%clk 0:00:13]}  Rd8 {[%clk 0:00:28]} 58. b7 {[%clk 0:00:13]}  Rb8 {[%clk 0:00:28]} 59. Nxa5 {[%clk 0:00:13]}  Nxa4 {[%clk 0:00:28]} 60. Rc8 {[%clk 0:00:13]} 1-0


[Site "http://www.Chess.com"]

[Event "FIDE World Rapid Chess Championship 2021"]
[White "Klimkowski, Jan"]
[Black "Kozak, Adam"]
[WhiteFideId "21856222"]
[BlackFideId "753246"]
[WhiteElo "2211"]
[BlackElo "2552"]
[Result "0-1"]
[Round "06"]
[TimeControl "900+10"]
[Date "2021.12.27"]
[WhiteClock "0:00:40"]
[BlackClock "0:00:25"]

1. d4 {[%clk 0:15:00]}  Nf6 {[%clk 0:15:00]} 2. c4 {[%clk 0:15:33]}  e6 {[%clk 0:15:19]} 3. Nf3 {[%clk 0:15:33]}  b6 {[%clk 0:15:19]} 4. g3 {[%clk 0:15:33]}  Bb4+ {[%clk 0:15:19]} 5. Bd2 {[%clk 0:15:33]}  Be7 {[%clk 0:15:19]} 6. Bg2 {[%clk 0:15:33]}  c6 {[%clk 0:15:19]} 7. O-O {[%clk 0:15:33]}  d5 {[%clk 0:15:19]} 8. Nc3 {[%clk 0:15:32]}  O-O {[%clk 0:15:38]} 9. Bf4 {[%clk 0:15:32]}  Nbd7 {[%clk 0:15:39]} 10. Qc2 {[%clk 0:14:25]}  Ba6 {[%clk 0:13:52]} 11. cxd5 {[%clk 0:14:16]}  cxd5 {[%clk 0:13:52]} 12. Qa4 {[%clk 0:13:29]}  Qc8 {[%clk 0:12:45]} 13. Rfc1 {[%clk 0:13:20]}  Qc4 {[%clk 0:07:00]} 14. Qd1 {[%clk 0:12:03]}  Qc6 {[%clk 0:05:51]} 15. a4 {[%clk 0:11:30]}  Rac8 {[%clk 0:05:59]} 16. Nb5 {[%clk 0:09:44]}  Qb7 {[%clk 0:05:59]} 17. Nc7 {[%clk 0:09:22]}  Nh5 {[%clk 0:05:39]} 18. Nxa6 {[%clk 0:07:45]}  Nxf4 {[%clk 0:05:39]} 19. gxf4 {[%clk 0:07:45]}  Qxa6 {[%clk 0:05:39]} 20. e3 {[%clk 0:07:45]}  Bd6 {[%clk 0:05:11]} 21. Qb3 {[%clk 0:07:46]}  Rxc1+ {[%clk 0:04:10]} 22. Rxc1 {[%clk 0:06:58]}  Rc8 {[%clk 0:04:10]} 23. Rc2 {[%clk 0:07:05]}  Qb7 {[%clk 0:01:42]} 24. Bf1 {[%clk 0:06:19]}  Nf6 {[%clk 0:01:26]} 25. Bd3 {[%clk 0:06:19]}  g6 {[%clk 0:01:26]} 26. Rxc8+ {[%clk 0:06:12]}  Qxc8 {[%clk 0:00:35]} 27. Qc2 {[%clk 0:06:12]}  Qxc2 {[%clk 0:00:40]} 28. Bxc2 {[%clk 0:04:59]}  Kf8 {[%clk 0:00:40]} 29. Kf1 {[%clk 0:04:59]}  h6 {[%clk 0:00:40]} 30. h3 {[%clk 0:04:59]}  Ke7 {[%clk 0:00:40]} 31. Ke2 {[%clk 0:04:59]}  Nd7 {[%clk 0:00:39]} 32. Bd3 {[%clk 0:05:03]}  Nf6 {[%clk 0:00:39]} 33. Bc2 {[%clk 0:05:03]}  Ne8 {[%clk 0:00:39]} 34. Bd3 {[%clk 0:05:03]}  Nc7 {[%clk 0:00:14]} 35. Ne1 {[%clk 0:04:58]}  g5 {[%clk 0:00:14]} 36. fxg5 {[%clk 0:04:15]}  hxg5 {[%clk 0:00:16]} 37. Nf3 {[%clk 0:04:15]}  f6 {[%clk 0:00:16]} 38. Nd2 {[%clk 0:04:15]}  Ne8 {[%clk 0:00:16]} 39. e4 {[%clk 0:04:15]}  dxe4 {[%clk 0:00:22]} 40. Bxe4 {[%clk 0:03:50]}  f5 {[%clk 0:00:22]} 41. Bc6 {[%clk 0:03:50]}  Nf6 {[%clk 0:00:22]} 42. Bf3 {[%clk 0:03:58]}  Nd7 {[%clk 0:00:22]} 43. Nc4 {[%clk 0:03:58]}  Nf8 {[%clk 0:00:05]} 44. Bh5 {[%clk 0:03:49]}  Bc7 {[%clk 0:00:05]} 45. b4 {[%clk 0:03:49]}  Nd7 {[%clk 0:00:05]} 46. Bf3 {[%clk 0:03:49]}  Nf6 {[%clk 0:00:05]} 47. b5 {[%clk 0:03:24]}  Kd7 {[%clk 0:00:05]} 48. Bc6+ {[%clk 0:03:24]}  Kd8 {[%clk 0:00:05]} 49. Bf3 {[%clk 0:03:24]}  Ke7 {[%clk 0:00:05]} 50. Kd3 {[%clk 0:03:24]}  Nh7 {[%clk 0:00:05]} 51. Ke2 {[%clk 0:03:23]}  Nf8 {[%clk 0:00:00]} 52. Bh5 {[%clk 0:03:23]}  Kf6 {[%clk 0:00:00]} 53. Kf3 {[%clk 0:02:36]}  e5 {[%clk 0:00:16]} 54. dxe5+ {[%clk 0:02:36]}  Bxe5 {[%clk 0:00:16]} 55. a5 {[%clk 0:02:36]}  bxa5 {[%clk 0:00:16]} 56. Nxa5 {[%clk 0:02:36]}  Ne6 {[%clk 0:00:16]} 57. Nc6 {[%clk 0:02:36]}  Bd4 {[%clk 0:00:16]} 58. Be8 {[%clk 0:02:27]}  Bb6 {[%clk 0:00:18]} 59. Bd7 {[%clk 0:02:27]}  Nc5 {[%clk 0:00:18]} 60. Bc8 {[%clk 0:02:27]}  Ne4 {[%clk 0:00:18]} 61. Nb4 {[%clk 0:02:27]}  Nd2+ {[%clk 0:00:01]} 62. Ke2 {[%clk 0:01:58]}  Ne4 {[%clk 0:00:01]} 63. Kf3 {[%clk 0:01:58]}  Bc5 {[%clk 0:00:01]} 64. Nd3 {[%clk 0:01:58]}  Bd6 {[%clk 0:00:01]} 65. Bb7 {[%clk 0:01:58]}  Nd2+ {[%clk 0:00:01]} 66. Ke2 {[%clk 0:01:58]}  Nb3 {[%clk 0:00:15]} 67. Ke3 {[%clk 0:02:08]}  Bc7 {[%clk 0:00:15]} 68. f4 {[%clk 0:00:53]}  Bb6+ {[%clk 0:00:15]} 69. Kf3 {[%clk 0:00:53]}  Nd4+ {[%clk 0:00:15]} 70. Kg3 {[%clk 0:00:53]}  gxf4+ {[%clk 0:00:15]} 71. Nxf4 {[%clk 0:00:53]}  Bc7 {[%clk 0:00:15]} 72. h4 {[%clk 0:00:40]}  Ne2+ {[%clk 0:00:25]} 73. Kf3 {[%clk 0:00:40]}  Nxf4 {[%clk 0:00:25]} 0-1


[Site "http://www.Chess.com"]

[Event "FIDE World Rapid Chess Championship 2021"]
[White "Asadli, Vugar"]
[Black "Piorun, Kacper"]
[WhiteFideId "13405764"]
[BlackFideId "1130420"]
[WhiteElo "2309"]
[BlackElo "2547"]
[Result "0-1"]
[Round "06"]
[TimeControl "900+10"]
[Date "2021.12.27"]
[WhiteClock "0:00:36"]
[BlackClock "0:00:57"]

1. e4 {[%clk 0:15:00]}  e5 {[%clk 0:15:00]} 2. Nf3 {[%clk 0:15:13]}  Nc6 {[%clk 0:15:19]} 3. Bc4 {[%clk 0:15:13]}  Bc5 {[%clk 0:15:19]} 4. c3 {[%clk 0:15:13]}  Nf6 {[%clk 0:15:19]} 5. d4 {[%clk 0:15:13]}  exd4 {[%clk 0:15:19]} 6. e5 {[%clk 0:15:13]}  d5 {[%clk 0:15:19]} 7. Bb5 {[%clk 0:15:13]}  Ne4 {[%clk 0:15:19]} 8. cxd4 {[%clk 0:15:13]}  Bb6 {[%clk 0:15:19]} 9. Nc3 {[%clk 0:15:13]}  O-O {[%clk 0:15:19]} 10. Be3 {[%clk 0:15:13]}  f5 {[%clk 0:15:19]} 11. exf6 {[%clk 0:15:56]}  Nxc3 {[%clk 0:15:18]} 12. bxc3 {[%clk 0:15:28]}  Qxf6 {[%clk 0:15:18]} 13. O-O {[%clk 0:15:28]}  Bg4 {[%clk 0:15:18]} 14. Be2 {[%clk 0:15:28]}  Rae8 {[%clk 0:15:18]} 15. h3 {[%clk 0:15:28]}  Bh5 {[%clk 0:15:18]} 16. a4 {[%clk 0:15:43]}  a6 {[%clk 0:14:57]} 17. Rb1 {[%clk 0:15:22]}  Qd6 {[%clk 0:14:19]} 18. Nd2 {[%clk 0:15:10]}  Bg6 {[%clk 0:13:57]} 19. Rb2 {[%clk 0:13:24]}  Na5 {[%clk 0:12:48]} 20. Bh5 {[%clk 0:13:04]}  Re6 {[%clk 0:11:58]} 21. Bg4 {[%clk 0:11:09]}  Re7 {[%clk 0:09:41]} 22. Bg5 {[%clk 0:10:02]}  Ree8 {[%clk 0:09:13]} 23. Bh4 {[%clk 0:09:25]}  Qa3 {[%clk 0:09:16]} 24. Qc1 {[%clk 0:07:40]}  Qxa4 {[%clk 0:09:16]} 25. Rb4 {[%clk 0:07:28]}  Qc6 {[%clk 0:08:18]} 26. Qa3 {[%clk 0:06:49]}  Nc4 {[%clk 0:07:38]} 27. Nxc4 {[%clk 0:06:44]}  dxc4 {[%clk 0:06:55]} 28. Rb2 {[%clk 0:06:44]}  Be4 {[%clk 0:06:55]} 29. f4 {[%clk 0:06:00]}  Bd3 {[%clk 0:06:34]} 30. Rff2 {[%clk 0:06:00]}  Bf5 {[%clk 0:06:24]} 31. Be7 {[%clk 0:05:24]}  Rf7 {[%clk 0:04:50]} 32. Bxf5 {[%clk 0:05:24]}  Rxf5 {[%clk 0:04:50]} 33. Rbe2 {[%clk 0:05:24]}  Qd7 {[%clk 0:03:58]} 34. Qb4 {[%clk 0:04:00]}  Rf7 {[%clk 0:04:01]} 35. Bh4 {[%clk 0:02:51]}  Rxe2 {[%clk 0:04:01]} 36. Rxe2 {[%clk 0:02:51]}  Qb5 {[%clk 0:04:01]} 37. Qa3 {[%clk 0:02:53]}  Rxf4 {[%clk 0:03:24]} 38. Qe7 {[%clk 0:02:53]}  h6 {[%clk 0:02:54]} 39. Bg3 {[%clk 0:02:39]}  Rf7 {[%clk 0:02:54]} 40. Qd8+ {[%clk 0:02:39]}  Rf8 {[%clk 0:02:54]} 41. Qe7 {[%clk 0:02:39]}  Qf5 {[%clk 0:02:39]} 42. Kh2 {[%clk 0:02:10]}  Qf7 {[%clk 0:02:39]} 43. Qb4 {[%clk 0:02:10]}  a5 {[%clk 0:02:03]} 44. Qb5 {[%clk 0:02:17]}  Kh7 {[%clk 0:02:03]} 45. Bh4 {[%clk 0:02:17]}  Qf4+ {[%clk 0:01:21]} 46. Bg3 {[%clk 0:02:16]}  Qf7 {[%clk 0:01:21]} 47. Bh4 {[%clk 0:02:16]}  Ra8 {[%clk 0:01:21]} 48. Re7 {[%clk 0:02:16]}  Qg6 {[%clk 0:01:21]} 49. Bg3 {[%clk 0:02:16]}  Rf8 {[%clk 0:01:08]} 50. Qxc4 {[%clk 0:02:04]}  Re8 {[%clk 0:01:08]} 51. Rf7 {[%clk 0:01:17]}  Qe6 {[%clk 0:00:37]} 52. Qd3+ {[%clk 0:01:17]}  Kg8 {[%clk 0:00:37]} 53. Rf1 {[%clk 0:01:17]}  a4 {[%clk 0:00:37]} 54. Ra1 {[%clk 0:01:04]}  Ra8 {[%clk 0:00:35]} 55. c4 {[%clk 0:01:04]}  c6 {[%clk 0:00:35]} 56. Re1 {[%clk 0:01:04]}  Qd7 {[%clk 0:00:35]} 57. d5 {[%clk 0:00:36]}  a3 {[%clk 0:00:33]} 58. Ra1 {[%clk 0:00:36]}  Bc5 {[%clk 0:00:33]} 59. Qb3 {[%clk 0:00:36]}  Kh8 {[%clk 0:00:33]} 60. Ra2 {[%clk 0:00:36]}  cxd5 {[%clk 0:00:33]} 61. cxd5 {[%clk 0:00:36]}  Bd6 {[%clk 0:00:33]} 62. Rd2 {[%clk 0:00:36]}  Bxg3+ {[%clk 0:00:33]} 63. Kxg3 {[%clk 0:00:36]}  Qd6+ {[%clk 0:00:33]} 64. Kf2 {[%clk 0:00:36]}  Qf4+ {[%clk 0:00:33]} 65. Ke2 {[%clk 0:00:36]}  Qxd2+ {[%clk 0:00:57]} 0-1


[Site "http://www.Chess.com"]

[Event "FIDE World Rapid Chess Championship 2021"]
[White "Vokhidov, Shamsiddin"]
[Black "Aziz, Husain"]
[WhiteFideId "14204223"]
[BlackFideId "12100293"]
[WhiteElo "2546"]
[BlackElo "2430"]
[Result "1-0"]
[Round "06"]
[TimeControl "900+10"]
[Date "2021.12.27"]
[WhiteClock "0:00:51"]
[BlackClock "0:00:41"]

1. e4 {[%clk 0:15:00]}  e5 {[%clk 0:15:00]} 2. Nf3 {[%clk 0:15:00]}  Nc6 {[%clk 0:15:23]} 3. Bb5 {[%clk 0:15:34]}  Nf6 {[%clk 0:15:23]} 4. d3 {[%clk 0:15:34]}  d6 {[%clk 0:15:23]} 5. O-O {[%clk 0:15:34]}  Bd7 {[%clk 0:15:23]} 6. Re1 {[%clk 0:15:34]}  g6 {[%clk 0:15:23]} 7. d4 {[%clk 0:15:34]}  Bg7 {[%clk 0:15:23]} 8. d5 {[%clk 0:15:34]}  Ne7 {[%clk 0:15:23]} 9. Bxd7+ {[%clk 0:15:34]}  Nxd7 {[%clk 0:15:23]} 10. Be3 {[%clk 0:15:34]}  O-O {[%clk 0:15:51]} 11. c4 {[%clk 0:15:54]}  Kh8 {[%clk 0:15:51]} 12. Nc3 {[%clk 0:15:54]}  Ng8 {[%clk 0:15:17]} 13. a4 {[%clk 0:15:41]}  a5 {[%clk 0:15:17]} 14. g3 {[%clk 0:15:20]}  Bh6 {[%clk 0:15:00]} 15. Nh4 {[%clk 0:12:31]}  Bxe3 {[%clk 0:15:01]} 16. Rxe3 {[%clk 0:12:31]}  Ngf6 {[%clk 0:15:01]} 17. Qe2 {[%clk 0:12:03]}  Nc5 {[%clk 0:14:32]} 18. Qc2 {[%clk 0:12:03]}  c6 {[%clk 0:14:31]} 19. Rd1 {[%clk 0:08:44]}  Qe7 {[%clk 0:11:10]} 20. Re2 {[%clk 0:08:42]}  cxd5 {[%clk 0:10:12]} 21. exd5 {[%clk 0:07:29]}  Qd7 {[%clk 0:07:49]} 22. Nb5 {[%clk 0:07:29]}  Ne8 {[%clk 0:07:41]} 23. f4 {[%clk 0:04:55]}  f6 {[%clk 0:07:10]} 24. f5 {[%clk 0:04:55]}  g5 {[%clk 0:07:10]} 25. Ng2 {[%clk 0:04:13]}  Nc7 {[%clk 0:05:39]} 26. Nc3 {[%clk 0:04:13]}  N7a6 {[%clk 0:05:39]} 27. b3 {[%clk 0:04:13]}  Nb4 {[%clk 0:05:48]} 28. Qb1 {[%clk 0:03:34]}  h5 {[%clk 0:05:48]} 29. h3 {[%clk 0:03:34]}  Kg7 {[%clk 0:04:36]} 30. Ne3 {[%clk 0:03:35]}  Rh8 {[%clk 0:04:36]} 31. Nb5 {[%clk 0:03:17]}  h4 {[%clk 0:03:56]} 32. g4 {[%clk 0:03:17]}  Rhc8 {[%clk 0:03:56]} 33. Nc2 {[%clk 0:02:19]}  Nbd3 {[%clk 0:04:04]} 34. Ncd4 {[%clk 0:02:19]}  Nf4 {[%clk 0:04:04]} 35. Ne6+ {[%clk 0:02:19]}  Ncxe6 {[%clk 0:04:04]} 36. fxe6 {[%clk 0:02:33]}  Qd8 {[%clk 0:03:21]} 37. Rh2 {[%clk 0:02:33]}  Qb6+ {[%clk 0:03:00]} 38. Kh1 {[%clk 0:02:33]}  Qe3 {[%clk 0:03:00]} 39. Rf1 {[%clk 0:02:33]}  Ra6 {[%clk 0:02:44]} 40. Qd1 {[%clk 0:01:24]}  Kf8 {[%clk 0:02:44]} 41. Qf3 {[%clk 0:01:03]}  Qxf3+ {[%clk 0:02:44]} 42. Rxf3 {[%clk 0:01:03]}  Ke7 {[%clk 0:02:44]} 43. Rc3 {[%clk 0:01:11]}  Rb6 {[%clk 0:01:30]} 44. Rd2 {[%clk 0:01:11]}  e4 {[%clk 0:01:30]} 45. Nd4 {[%clk 0:01:11]}  Nd3 {[%clk 0:00:46]} 46. Nf5+ {[%clk 0:01:11]}  Kd8 {[%clk 0:00:46]} 47. Rdxd3 {[%clk 0:01:11]}  exd3 {[%clk 0:00:46]} 48. Rxd3 {[%clk 0:01:11]}  Kc7 {[%clk 0:00:41]} 49. Kg2 {[%clk 0:00:51]}  Rb4 {[%clk 0:00:41]} 50. Re3 {[%clk 0:00:51]}  b5 {[%clk 0:00:41]} 51. cxb5 {[%clk 0:00:51]}  Kb6 {[%clk 0:00:41]} 52. Re2 {[%clk 0:00:51]} 1-0


[Site "http://www.Chess.com"]

[Event "FIDE World Rapid Chess Championship 2021"]
[White "Donchenko, Alexander"]
[Black "Vastrukhin, Oleg"]
[WhiteFideId "24603295"]
[BlackFideId "4192770"]
[WhiteElo "2535"]
[BlackElo "2382"]
[Result "0-1"]
[Round "06"]
[TimeControl "900+10"]
[Date "2021.12.27"]
[WhiteClock "0:00:15"]
[BlackClock "0:00:45"]

1. d4 {[%clk 0:15:00]}  g6 {[%clk 0:15:00]} 2. c4 {[%clk 0:15:17]}  Bg7 {[%clk 0:15:24]} 3. Nc3 {[%clk 0:15:17]}  d6 {[%clk 0:15:24]} 4. Nf3 {[%clk 0:15:17]}  e5 {[%clk 0:15:24]} 5. dxe5 {[%clk 0:15:17]}  dxe5 {[%clk 0:15:24]} 6. Qxd8+ {[%clk 0:15:17]}  Kxd8 {[%clk 0:15:24]} 7. g3 {[%clk 0:15:17]}  c6 {[%clk 0:15:24]} 8. Bg2 {[%clk 0:15:36]}  f6 {[%clk 0:15:19]} 9. b4 {[%clk 0:15:01]}  Be6 {[%clk 0:14:43]} 10. Nd2 {[%clk 0:15:01]}  Nh6 {[%clk 0:14:37]} 11. b5 {[%clk 0:13:27]}  Nf7 {[%clk 0:13:38]} 12. Ba3 {[%clk 0:12:18]}  f5 {[%clk 0:12:41]} 13. O-O-O {[%clk 0:11:26]}  Kc7 {[%clk 0:10:47]} 14. bxc6 {[%clk 0:11:26]}  bxc6 {[%clk 0:10:47]} 15. Bb4 {[%clk 0:04:35]}  a5 {[%clk 0:10:51]} 16. Ba3 {[%clk 0:04:35]}  Na6 {[%clk 0:10:14]} 17. Nb3 {[%clk 0:04:25]}  e4 {[%clk 0:10:14]} 18. Bb2 {[%clk 0:04:22]}  Nb4 {[%clk 0:09:14]} 19. Nc5 {[%clk 0:03:56]}  Rhe8 {[%clk 0:06:42]} 20. a3 {[%clk 0:03:36]}  Bxc3 {[%clk 0:05:40]} 21. Bxc3 {[%clk 0:01:52]}  Na2+ {[%clk 0:05:40]} 22. Kc2 {[%clk 0:01:52]}  Nxc3 {[%clk 0:05:40]} 23. Kxc3 {[%clk 0:01:52]}  Ne5 {[%clk 0:05:40]} 24. f3 {[%clk 0:02:19]}  Bg8 {[%clk 0:04:00]} 25. fxe4 {[%clk 0:02:03]}  Nxc4 {[%clk 0:02:18]} 26. Rd7+ {[%clk 0:02:03]}  Kc8 {[%clk 0:02:05]} 27. a4 {[%clk 0:01:01]}  Ne3 {[%clk 0:00:48]} 28. Bf3 {[%clk 0:01:01]}  fxe4 {[%clk 0:00:48]} 29. Bxe4 {[%clk 0:01:01]}  Rxe4 {[%clk 0:00:48]} 30. Rg7 {[%clk 0:00:15]}  Re8 {[%clk 0:00:45]} 31. Kd4 {[%clk 0:00:15]} 0-1


[Site "http://www.Chess.com"]